bitfinex-derivatives/quotes_SOLF0:USTF0_20240911
["timestamp","ask_amount","ask_price","bid_price","bid_amount"]
[1726070445445,3.8097,131.25,131.22,3.8103]
[1726070445643,1.0,131.26,131.22,20.14]
[1726070445851,1.0,131.26,131.23,1.4198]
[1726070446157,1.0,131.26,131.23,5.2299]
[1726070446652,3.8099,131.25,131.23,1.4198]
[1726070446841,1.0,131.26,131.23,1.4198]
[1726070447755,1.0,131.26,131.24,1.4111]
[1726070449052,3.809,131.28,131.24,5.2208]
[1726070449250,20.14,131.32,131.24,1.4111]
[1726070449446,23.85770444,131.32,131.24,1.4111]
[1726070449745,1.0,131.31,131.25,3.8096]
[1726070450155,3.8085,131.29,131.24,5.2209]
[1726070450348,1.0,131.31,131.24,1.4111]
[1726070450751,3.8087,131.29,131.25,3.8096]
[1726070451754,3.8084,131.3,131.26,3.8093]
[1726070452350,3.8085,131.29,131.26,3.8093]
[1726070452750,1.0,131.31,131.26,20.14]
[1726070453152,1.0,131.31,131.29,3.8083]
[1726070453453,20.14,131.35,131.26,20.14]
[1726070453848,3.80429747,131.34,131.26,20.14]
[1726070454047,20.14,131.35,131.26,20.14]
[1726070454455,3.8078,131.32,131.29,3.8085]
[1726070454851,3.8078,131.32,131.28,3.8086]
[1726070455162,3.808,131.31,131.28,3.8086]
[1726070455462,3.74408721,131.34,131.3,3.8082]
[1726070455757,3.8067,131.36,131.32,20.14]
[1726070456162,21.5404,131.41,131.32,20.14]
[1726070456558,21.5404,131.41,131.33,3.8073]
[1726070456758,20.14,131.37,131.31,1.4094]
[1726070457269,3.8066,131.36,131.31,1.4094]
[1726070457662,1.0,131.4,131.32,20.14]
[1726070458174,20.14,131.38,131.31,1.4094]
[1726070458373,3.8069,131.35,131.31,1.4094]
[1726070458569,21.14,131.4,131.31,1.4094]
[1726070458768,21.14,131.4,131.33,3.8072]
[1726070459073,3.8066,131.36,131.33,3.8072]
[1726070459370,21.14,131.4,131.34,3.8071]
[1726070459963,3.8065,131.37,131.34,3.8071]
[1726070460171,21.14,131.4,131.33,3.8072]
[1726070460564,3.807,131.35,131.32,20.14]
[1726070461168,3.8067,131.36,131.32,20.14]
[1726070461369,21.14,131.4,131.32,20.14]
[1726070461573,20.14,131.38,131.31,1.4094]
[1726070462163,3.807,131.35,131.32,3.8075]
[1726070462476,20.14,131.38,131.31,1.4094]
[1726070463375,3.8069,131.35,131.31,1.4094]
[1726070463560,1.0,131.37,131.31,1.4094]
[1726070463761,3.8076,131.32,131.31,1.4094]
[1726070463963,1.0,131.37,131.31,1.4094]
[1726070464260,3.8062,131.37,131.34,3.8068]
[1726070464467,1.4004,131.41,131.32,20.14]
[1726070464666,20.14,131.4,131.32,20.14]
[1726070465071,20.14,131.4,131.33,3.8071]
[1726070465373,20.14,131.4,131.31,1.4094]
[1726070465674,3.8066,131.36,131.31,1.4094]
[1726070465870,23.91040427,131.42,131.34,20.14]
[1726070466068,3.8058,131.39,131.34,20.14]
[1726070466368,3.77040427,131.42,131.34,20.14]
[1726070466573,3.77040427,131.42,131.31,1.4094]
[1726070466574,20.14,131.42,131.31,21.5494]
[1726070466771,23.8548732,131.42,131.33,20.14]
[1726070467368,3.7148732,131.42,131.34,3.807]
[1726070467672,20.14,131.44,131.34,3.807]
[1726070467868,3.8064,131.37,131.34,1.3349]
[1726070468062,1.0,131.43,131.34,1.3349]
[1726070468274,20.14,131.42,131.34,1.3349]
[1726070469176,20.14,131.4,131.31,1.4094]
[1726070469467,20.14,131.4,131.32,20.14]
[1726070469672,3.8067,131.36,131.32,21.5498]
[1726070470062,3.8061,131.38,131.34,23.947]
[1726070470266,1.0,131.41,131.34,20.14]
[1726070470980,3.8061,131.38,131.34,20.14]
[1726070471276,1.0,131.41,131.34,20.14]
[1726070471977,3.8064,131.37,131.34,23.947]
[1726070472274,3.83994841,131.4,131.34,20.14]
[1726070472483,20.14,131.4,131.32,1.4098]
[1726070472673,24.01193211,131.4,131.32,1.4098]
[1726070473072,3.807,131.35,131.32,1.4098]
[1726070473374,24.01193211,131.4,131.32,1.4098]
[1726070474072,3.8074,131.33,131.31,1.4094]
[1726070474376,1.3871,131.39,131.31,1.4094]
[1726070474578,20.14,131.38,131.31,1.4094]
[1726070474773,3.8074,131.33,131.31,1.4094]
[1726070474976,20.14,131.38,131.31,1.4094]
[1726070475177,1.3871,131.39,131.31,1.4094]
[1726070475379,2.3871,131.39,131.31,5.2172]
[1726070475883,3.8069,131.35,131.32,3.8076]
[1726070476580,3.8069,131.35,131.32,23.9476]
[1726070477277,3.8069,131.35,131.32,20.14]
[1726070477477,1.0,131.39,131.32,20.14]
[1726070477677,1.0,131.39,131.32,23.9474]
[1726070477878,3.8067,131.36,131.32,23.9474]
[1726070478079,1.0,131.39,131.32,23.9474]
[1726070478678,20.14,131.42,131.32,20.14]
[1726070478877,1.431,131.48,131.36,20.14]
[1726070479083,1.431,131.48,131.37,1.3836]
[1726070479279,1.431,131.48,131.37,2.7202]
[1726070479671,3.8049,131.42,131.38,3.8057]
[1726070480291,3.8051,131.41,131.38,3.8057]
[1726070480479,3.84966872,131.47,131.4,20.14]
[1726070480680,1.431,131.48,131.42,20.14]
[1726070480988,5.24297167,131.48,131.42,20.14]
[1726070481191,1.431,131.48,131.42,20.14]
[1726070481490,20.14,131.52,131.43,20.14]
[1726070481789,23.89180759,131.54,131.45,20.14]
[1726070481991,20.14,131.54,131.45,20.14]
[1726070482285,3.8031,131.48,131.44,2.8086]
[1726070482490,2.4002,131.55,131.46,3.8035]
[1726070482491,23.96335033,131.54,131.46,3.8035]
[1726070482681,20.14,131.54,131.45,20.14]
[1726070482880,23.92567623,131.54,131.44,22.9486]
[1726070483085,23.92567623,131.54,131.44,26.7527]
[1726070483281,20.14,131.52,131.44,22.9486]
[1726070483688,3.74381611,131.51,131.46,20.14]
[1726070483981,20.14,131.54,131.46,20.14]
[1726070484179,23.874683,131.54,131.46,20.14]
[1726070484585,20.14,131.52,131.44,21.5463]
[1726070485485,20.14,131.52,131.44,1.4063]
[1726070485688,20.14,131.5,131.4,26.6996]
[1726070485890,20.14,131.5,131.4,22.8944]
[1726070486089,20.14,131.5,131.41,5.2233]
[1726070486491,3.8041,131.45,131.41,5.2233]
[1726070486789,20.14,131.5,131.42,3.8047]
[1726070486987,3.8041,131.45,131.41,1.4184]
[1726070487589,3.87231775,131.47,131.41,1.4184]
[1726070487790,20.14,131.5,131.41,1.4184]
[1726070487988,20.14,131.5,131.41,5.2232]
[1726070488192,20.14,131.5,131.41,1.4184]
[1726070488398,20.14,131.5,131.41,5.2232]
[1726070489193,20.14,131.49,131.41,1.4184]
[1726070489398,1.319,131.48,131.41,1.4184]
[1726070491091,1.319,131.48,131.42,3.8047]
[1726070491487,20.14,131.5,131.41,1.4184]
[1726070491794,20.14,131.5,131.41,2.8292]
[1726070491991,3.8038,131.46,131.41,2.8292]
[1726070492193,20.14,131.5,131.42,3.8046]
[1726070492791,20.14,131.5,131.41,2.8292]
[1726070492996,20.14,131.48,131.41,1.4184]
[1726070493197,20.14,131.48,131.41,5.2234]
[1726070493396,20.14,131.49,131.41,5.2234]
[1726070493697,20.14,131.49,131.42,3.8046]
[1726070493904,20.14,131.49,131.41,1.4184]
[1726070494101,20.14,131.51,131.41,1.4184]
[1726070494395,3.8039,131.45,131.42,3.8045]
[1726070494803,20.14,131.51,131.43,3.8044]
[1726070494804,3.8038,131.46,131.43,3.8044]
[1726070494995,20.14,131.51,131.41,22.884]
[1726070495994,20.14,131.51,131.42,3.8046]
[1726070496499,3.804,131.45,131.41,26.6888]
[1726070496695,3.804,131.45,131.41,22.884]
[1726070496894,20.14,131.49,131.41,22.884]
[1726070497409,20.14,131.49,131.41,26.6889]
[1726070497800,20.14,131.51,131.41,22.884]
[1726070497997,3.8044,131.44,131.41,2.744]
[1726070499207,3.8039,131.45,131.41,2.744]
[1726070499708,3.8039,131.45,131.41,6.5489]
[1726070500106,3.8039,131.45,131.42,3.8047]
[1726070501000,3.8039,131.45,131.41,26.6889]
[1726070501596,3.8039,131.45,131.42,3.8047]
[1726070501995,3.8038,131.46,131.42,3.8047]
[1726070502405,21.4536,131.52,131.42,3.8047]
[1726070502604,21.4536,131.52,131.41,22.884]
[1726070502801,20.14,131.5,131.41,1.4184]
[1726070503003,20.14,131.48,131.41,1.4184]
[1726070503210,3.8047,131.42,131.41,1.4184]
[1726070503396,20.14,131.48,131.41,1.4184]
[1726070503397,3.7891933,131.45,131.41,1.4184]
[1726070503595,20.14,131.48,131.41,1.4184]
[1726070504001,3.8046,131.43,131.41,1.4184]
[1726070505609,3.8043,131.44,131.41,5.2234]
[1726070505914,20.14,131.5,131.41,1.4184]
[1726070506111,20.14,131.51,131.42,20.14]
[1726070506307,20.14,131.51,131.43,3.8043]
[1726070507219,20.14,131.51,131.42,20.14]
[1726070507508,20.14,131.51,131.41,2.848]
[1726070507714,20.14,131.51,131.42,20.14]
[1726070508304,20.14,131.51,131.45,3.8038]
[1726070508513,96.84515173,131.56,131.46,20.14]
[1726070508514,116.98515173,131.56,131.46,20.14]
[1726070508705,109.38325173,131.56,131.46,20.14]
[1726070508906,3.8023,131.51,131.48,20.14]
[1726070509308,0.9976,131.55,131.48,20.14]
[1726070509510,4.72095555,131.55,131.48,20.14]
[1726070510310,20.14,131.51,131.41,2.848]
[1726070510613,20.14,131.51,131.41,22.988]
[1726070510812,20.14,131.51,131.43,3.8042]
[1726070511011,20.14,131.51,131.41,22.988]
[1726070511208,20.14,131.49,131.41,2.848]
[1726070511405,20.14,131.48,131.41,1.4184]
[1726070511604,24.01993444,131.48,131.41,1.4184]
[1726070512121,3.8045,131.43,131.41,1.4184]
[1726070512906,24.01993444,131.48,131.41,1.4184]
[1726070513311,3.8036,131.46,131.42,3.8045]
[1726070513510,3.87993444,131.48,131.42,3.8045]
[1726070513719,1.3895,131.5,131.41,21.5584]
[1726070514314,0.9984,131.54,131.41,21.5584]
[1726070514315,33.1184,131.54,131.45,3.8036]
[1726070514517,34.4885,131.54,131.45,3.8036]
[1726070515018,3.8035,131.47,131.43,32.12]
[1726070515220,34.4885,131.54,131.43,32.12]
[1726070515618,3.8032,131.48,131.44,3.804]
[1726070516315,3.8028,131.49,131.45,3.8038]
[1726070516518,3.8028,131.49,131.43,32.12]
[1726070517015,3.8025,131.5,131.46,3.8034]
[1726070518925,1.3701,131.54,131.45,32.12]
[1726070519119,1.3701,131.54,131.46,1.3406]
[1726070519419,3.8021,131.52,131.48,3.8028]
[1726070519621,1.3701,131.54,131.48,3.8028]
[1726070520123,1.3701,131.54,131.46,5.23058782]
[1726070520323,3.802,131.52,131.49,3.8026]
[1726070520717,3.72335555,131.55,131.48,1.392]
[1726070520910,1.4174,131.57,131.48,1.392]
[1726070521415,93.08235754,131.56,131.48,1.392]
[1726070521811,93.08235754,131.56,131.48,5.1949]
[1726070522517,3.8023,131.51,131.48,5.1949]
[1726070522719,125.20235754,131.56,131.46,1.3406]
[1726070523322,125.20235754,131.56,131.46,5.1439]
[1726070523323,3.8027,131.49,131.46,5.1439]
[1726070523520,125.20235754,131.56,131.46,1.3406]
[1726070524422,3.802,131.52,131.46,1.3406]
[1726070524625,93.08235754,131.56,131.46,1.3406]
[1726070525218,93.08235754,131.56,131.47,33.467]
[1726070525419,1.4174,131.57,131.5,32.12]
[1726070525623,1.4174,131.57,131.51,1.3775]
[1726070526624,3.8012,131.55,131.51,5.1795]
[1726070527019,3.8014,131.54,131.51,1.3775]
[1726070527426,3.85964244,131.58,131.51,1.3775]
[1726070527625,3.8009,131.56,131.52,3.8016]
[1726070527830,3.87436062,131.57,131.52,3.8016]
[1726070528020,32.12,131.6,131.52,3.8016]
[1726070528219,3.8012,131.55,131.51,5.1796]
[1726070528727,3.8012,131.55,131.52,3.8018]
[1726070529425,32.12,131.62,131.51,1.3775]
[1726070529627,32.12,131.62,131.52,33.5238]
[1726070530159,3.8007,131.56,131.53,3.8015]
[1726070530629,32.12,131.6,131.51,1.3775]
[1726070530836,32.12,131.6,131.48,33.5238]
[1726070531027,32.12,131.58,131.48,33.5238]
[1726070531330,3.802,131.52,131.48,33.5238]
[1726070531526,3.82281368,131.54,131.48,33.5238]
[1726070531837,3.8017,131.53,131.49,3.8025]
[1726070532132,3.8017,131.53,131.48,33.5238]
[1726070532133,1.3228,131.57,131.5,32.12]
[1726070532428,3.8012,131.55,131.51,3.802]
[1726070532636,1.3228,131.57,131.5,32.12]
[1726070532829,1.3827,131.61,131.5,32.12]
[1726070533137,3.8006,131.57,131.52,32.12]
[1726070533836,3.8008,131.56,131.53,3.8015]
[1726070535232,3.8003,131.58,131.55,3.8009]
[1726070536332,1.3827,131.61,131.54,23.8811]
[1726070537028,3.8004,131.57,131.54,23.8811]
[1726070537433,3.8004,131.57,131.55,3.801]
[1726070537629,3.8003,131.58,131.55,3.801]
[1726070538035,20.08,131.66,131.56,20.08]
[1726070538235,3.80628262,131.63,131.56,20.08]
[1726070538438,22.4827,131.66,131.56,20.08]
[1726070538630,20.08,131.62,131.52,20.08]
[1726070539133,3.8011,131.55,131.52,23.8817]
[1726070539340,3.88267944,131.58,131.52,20.08]
[1726070539541,149.63890316,131.74,131.57,20.08]
[1726070539741,0.9964,131.65,131.55,20.08]
[1726070539949,3.83788097,131.64,131.55,20.08]
[1726070540130,2.4102,131.65,131.53,21.4201]
[1726070540331,2.4102,131.65,131.53,1.3401]
[1726070540332,3.76909629,131.64,131.53,1.3401]
[1726070540536,3.76909629,131.64,131.58,3.7999]
[1726070540939,2.4102,131.65,131.56,20.08]
[1726070541151,3.7353,131.65,131.56,20.08]
[1726070541334,3.7353,131.65,131.57,3.8004]
[1726070541535,7.6294248,131.65,131.57,3.8004]
[1726070541732,3.7353,131.65,131.57,3.8004]
[1726070541935,3.7991,131.62,131.58,3.8001]
[1726070542143,3.7353,131.65,131.56,20.08]
[1726070542739,7.56786061,131.65,131.59,20.08]
[1726070543051,6.2084,131.65,131.61,3.7992]
[1726070543239,11.3806,131.81,131.6,20.08]
[1726070543240,3.79274889,131.66,131.6,20.08]
[1726070543547,20.08,131.7,131.6,20.08]
[1726070543741,3.7982,131.65,131.62,3.7988]
[1726070543940,3.78590826,131.66,131.6,20.08]
[1726070544143,20.08,131.7,131.6,20.08]
[1726070544344,3.7977,131.67,131.63,3.7985]
[1726070544542,3.70610092,131.66,131.63,3.7985]
[1726070544848,3.7978,131.66,131.62,3.7988]
[1726070545149,3.80833033,131.66,131.6,22.946]
[1726070545339,3.7977,131.67,131.62,20.08]
[1726070545547,2.7514,131.71,131.62,20.08]
[1726070545933,3.7972,131.69,131.65,3.7979]
[1726070546536,2.7514,131.71,131.64,3.7983]
[1726070547254,3.7603557,131.74,131.68,20.08]
[1726070547557,3.7603557,131.74,131.6,24.3251]
[1726070547558,20.08,131.76,131.65,20.08]
[1726070547845,2.7254,131.73,131.65,20.08]
[1726070548044,3.7965,131.71,131.67,3.7975]
[1726070548253,6.54654037,131.73,131.65,20.08]
[1726070548635,6.54654037,131.73,131.65,23.878]
[1726070549240,3.7971,131.69,131.65,23.878]
[1726070549445,6.54654037,131.73,131.67,3.7975]
[1726070549856,6.54654037,131.73,131.67,20.08]
[1726070550046,6.54654037,131.73,131.65,20.08]
[1726070550252,3.7974,131.68,131.65,20.08]
[1726070550551,6.54654037,131.73,131.65,20.08]
[1726070551546,3.82114037,131.73,131.69,3.7968]
[1726070551740,1.3006,131.75,131.6,4.2451]
[1726070551939,1.3457,131.74,131.65,20.08]
[1726070552352,1.4118,131.73,131.65,20.08]
[1726070552543,5.23396886,131.73,131.65,20.08]
[1726070553152,5.23396886,131.73,131.65,23.878]
[1726070553448,5.23396886,131.73,131.6,4.2451]
[1726070553449,20.08,131.69,131.6,4.2451]
[1726070553752,2.6552,131.68,131.58,20.08]
[1726070554052,20.08,131.67,131.58,20.08]
[1726070554243,21.4734,131.67,131.58,20.08]
[1726070554438,21.4734,131.67,131.59,3.7997]
[1726070555357,21.4734,131.67,131.58,23.88]
[1726070555543,1.3934,131.67,131.58,20.08]
[1726070555744,3.7992,131.62,131.58,23.88]
[1726070556748,3.7993,131.61,131.58,23.88]
[1726070557748,3.7553162,131.63,131.56,20.08]
[1726070557948,20.08,131.66,131.56,20.08]
[1726070558547,23.89575095,131.66,131.56,23.8806]
[1726070558744,23.89575095,131.66,131.56,20.08]
[1726070559153,23.89575095,131.66,131.57,3.8004]
[1726070559651,3.7998,131.6,131.57,3.8004]
[1726070559854,23.89575095,131.66,131.56,23.8806]
[1726070560242,23.89575095,131.66,131.56,20.08]
[1726070560747,3.81575095,131.66,131.56,20.08]
[1726070561051,1.3934,131.67,131.6,20.08]
[1726070561255,2.6552,131.68,131.62,20.08]
[1726070561456,3.798,131.66,131.62,20.08]
[1726070561952,3.7976,131.67,131.63,3.7985]
[1726070562459,3.7978,131.66,131.63,3.7985]
[1726070563046,3.7978,131.66,131.62,23.8788]
[1726070563358,3.7983,131.65,131.62,20.08]
[1726070563549,3.76186843,131.66,131.61,2.6895]
[1726070563749,20.08,131.69,131.61,2.6895]
[1726070564053,20.08,131.71,131.61,2.6895]
[1726070564452,20.08,131.71,131.63,3.7985]
[1726070564647,20.08,131.71,131.61,2.6895]
[1726070565049,3.7977,131.67,131.61,2.6895]
[1726070565249,3.7977,131.67,131.62,20.08]
[1726070565448,20.08,131.71,131.62,20.08]
[1726070565659,3.7985,131.64,131.61,26.5686]
[1726070565845,3.70791577,131.66,131.61,26.5686]
[1726070566045,3.798,131.66,131.62,3.7987]
[1726070566250,3.798,131.66,131.61,22.7695]
[1726070566445,20.08,131.71,131.61,22.7695]
[1726070566655,20.08,131.71,131.62,3.7989]
[1726070566953,20.08,131.71,131.61,22.7695]
[1726070567157,4.0249,131.72,131.61,20.08]
[1726070567360,4.0249,131.72,131.59,20.08]
[1726070567361,20.08,131.68,131.59,20.08]
[1726070567558,20.08,131.68,131.54,4.214]
[1726070567760,20.08,131.66,131.56,20.08]
[1726070567963,2.7583,131.65,131.56,20.08]
[1726070568262,3.7994,131.61,131.58,3.8001]
[1726070568466,2.7583,131.65,131.56,20.08]
[1726070569051,3.7991,131.62,131.59,3.7996]
[1726070569255,2.7583,131.65,131.59,3.7996]
[1726070569464,2.7583,131.65,131.58,20.08]
[1726070570550,3.7992,131.62,131.58,20.08]
[1726070571363,3.7992,131.62,131.59,3.7997]
[1726070571862,3.7993,131.61,131.58,20.08]
[1726070572057,2.7583,131.65,131.59,3.7998]
[1726070572365,2.7583,131.65,131.56,20.08]
[1726070572566,2.7583,131.65,131.58,3.8001]
[1726070572764,3.7991,131.62,131.56,20.08]
[1726070573268,3.7996,131.6,131.56,20.08]
[1726070573761,3.7996,131.6,131.57,3.8004]
[1726070573971,3.7993,131.61,131.56,20.08]
[1726070574161,24.1501,131.65,131.56,20.08]
[1726070574356,3.7992,131.62,131.58,3.8]
[1726070574557,3.7992,131.62,131.56,20.08]
[1726070574869,3.7992,131.62,131.58,3.7999]
[1726070575764,3.7993,131.61,131.58,3.7999]
[1726070575955,24.1501,131.65,131.59,3.7998]
[1726070576156,4.0701,131.65,131.56,20.08]
[1726070576353,23.89810079,131.66,131.57,20.08]
[1726070576762,3.7988,131.63,131.57,20.08]
[1726070577054,3.7988,131.63,131.6,3.7993]
[1726070578860,23.89810079,131.66,131.6,3.7993]
[1726070579562,3.7988,131.63,131.6,3.7993]
[1726070579772,23.89810079,131.66,131.59,3.7997]
[1726070579966,3.7996,131.6,131.55,20.08]
[1726070580166,20.08,131.64,131.56,3.8005]
[1726070580360,4.2185,131.65,131.55,20.08]
[1726070580669,8.10798894,131.65,131.6,3.7993]
[1726070580867,8.10798894,131.65,131.57,20.08]
[1726070581167,6.70508894,131.65,131.57,20.08]
[1726070581770,3.7986,131.64,131.6,3.7993]
[1726070582264,3.7986,131.64,131.57,20.08]
[1726070582265,20.08,131.66,131.57,20.08]
[1726070582465,2.7562,131.71,131.61,20.08]
[1726070582672,22.8362,131.71,131.61,20.08]
[1726070582970,22.8362,131.71,131.62,2.707]
[1726070583170,3.7974,131.68,131.62,4.0582]
[1726070583368,2.7562,131.71,131.63,20.08]
[1726070583575,3.82216886,131.73,131.65,20.08]
[1726070583773,3.82216886,131.73,131.66,20.08]
[1726070583965,20.08,131.76,131.66,20.08]
[1726070584164,20.08,131.76,131.73,3.7958]
[1726070584467,7.83,131.77,131.68,20.08]
[1726070584468,2.6478,131.77,131.68,20.08]
[1726070584667,3.7954,131.75,131.7,3.7964]
[1726070585273,18.945,131.97,131.7,20.08]
[1726070585467,5.25583343,131.86,131.72,20.08]
[1726070585661,20.08,131.82,131.72,20.08]
[1726070585867,3.85100778,131.82,131.74,20.08]
[1726070586062,20.08,131.84,131.74,20.08]
[1726070586266,32.07,131.84,131.73,32.07]
[1726070586467,35.81278007,131.84,131.73,32.07]
[1726070586662,32.07,131.82,131.69,4.2583]
[1726070586966,3.7949,131.76,131.71,3.7963]
[1726070587172,3.84721032,131.77,131.7,32.07]
[1726070587377,32.07,131.82,131.7,32.07]
[1726070587963,3.7947,131.77,131.7,32.07]
[1726070588276,7.57355597,131.77,131.7,32.07]
[1726070588478,7.57355597,131.77,131.71,3.7963]
[1726070588679,3.7949,131.76,131.71,3.7963]
[1726070588980,3.77885597,131.77,131.7,32.07]
[1726070589276,3.7949,131.77,131.7,32.07]
[1726070589474,7.66620584,131.77,131.71,3.7961]
[1726070589871,32.07,131.82,131.7,32.07]
[1726070590268,3.74278007,131.84,131.7,32.07]
[1726070590477,32.07,131.83,131.72,32.07]
[1726070590675,35.86764624,131.83,131.73,3.7958]
[1726070590877,35.86764624,131.83,131.7,32.07]
[1726070591079,3.795,131.76,131.7,32.07]
[1726070591278,32.07,131.81,131.7,32.07]
[1726070591581,3.7945,131.78,131.73,3.7956]
[1726070591777,3.7945,131.78,131.7,32.07]
[1726070592177,35.86764624,131.83,131.7,32.07]
[1726070592370,35.86764624,131.83,131.72,32.07]
[1726070592584,35.86764624,131.83,131.75,3.795]
[1726070592776,3.7943,131.79,131.72,32.07]
[1726070592971,3.79764624,131.83,131.72,32.07]
[1726070593171,32.07,131.84,131.72,32.07]
[1726070593476,35.78573103,131.84,131.72,32.07]
[1726070594079,3.7939,131.8,131.76,3.7947]
[1726070594274,35.78573103,131.84,131.72,32.07]
[1726070595076,3.7939,131.8,131.76,3.7947]
[1726070595588,3.7939,131.8,131.72,32.07]
[1726070596379,3.7939,131.8,131.76,3.7947]
[1726070596580,3.7943,131.79,131.72,32.07]
[1726070597186,3.7937,131.81,131.72,32.07]
[1726070597379,35.78573103,131.84,131.76,3.7948]
[1726070597582,35.78573103,131.84,131.72,32.07]
[1726070597777,3.7938,131.8,131.72,32.07]
[1726070597978,36.1001,131.86,131.74,32.07]
[1726070598178,3.7937,131.81,131.75,4.1582]
[1726070598483,38.57058405,131.86,131.75,4.1582]
[1726070598685,3.7933,131.82,131.75,4.1582]
[1726070598885,38.57058405,131.86,131.75,4.1582]
[1726070599182,3.7946,131.78,131.75,4.1582]
[1726070599685,3.85798405,131.79,131.75,4.1582]
[1726070599894,32.07,131.79,131.59,3.88189718]
[1726070600090,35.79779038,131.79,131.67,2.8222]
[1726070600288,3.7957,131.74,131.7,3.7966]
[1726070600590,3.7957,131.74,131.68,1.4375]
[1726070600779,3.7952,131.75,131.68,1.4375]
[1726070601098,3.72779038,131.79,131.7,32.07]
[1726070601388,32.07,131.81,131.7,32.07]
[1726070601685,152.01940316,131.82,131.7,32.07]
[1726070601881,152.01940316,131.82,131.72,32.07]
[1726070602085,152.01940316,131.82,131.73,2.724]
[1726070602392,3.7943,131.79,131.75,3.795]
[1726070602586,1.3805,131.82,131.73,2.724]
[1726070602587,3.79176792,131.78,131.73,2.724]
[1726070602781,1.3805,131.82,131.73,2.724]
[1726070603487,3.7945,131.78,131.74,3.7955]
[1726070603690,3.83923147,131.78,131.73,2.724]
[1726070603884,32.07,131.81,131.73,2.724]
[1726070604081,32.07,131.81,131.73,6.5195]
[1726070604286,32.07,131.81,131.73,2.724]
[1726070604584,3.7941,131.79,131.73,34.794]
[1726070604788,1.3805,131.82,131.73,34.794]
[1726070604985,3.7942,131.79,131.75,3.7951]
[1726070605187,1.3805,131.82,131.73,34.794]
[1726070605582,1.3805,131.82,131.75,3.7951]
[1726070605792,1.3805,131.82,131.73,2.724]
[1726070606092,3.794,131.8,131.76,3.7949]
[1726070606288,1.3805,131.82,131.73,2.724]
[1726070606491,3.7942,131.79,131.75,3.7951]
[1726070607495,3.84405132,131.79,131.74,3.7953]
[1726070607688,32.07,131.81,131.73,1.3541]
[1726070607887,1.3462,131.8,131.73,1.3541]
[1726070608101,1.3462,131.8,131.71,32.07]
[1726070608306,1.3462,131.8,131.72,3.7959]
[1726070608590,21.3962,131.8,131.72,3.7959]
[1726070608788,3.7952,131.76,131.72,3.7959]
[1726070608993,3.74135944,131.76,131.72,3.7959]
[1726070609290,21.3962,131.8,131.72,3.7959]
[1726070609487,3.7951,131.76,131.72,3.7959]
[1726070609793,3.77476444,131.77,131.72,3.7959]
[1726070609996,21.3962,131.8,131.71,3.7963]
[1726070610193,1.3156,131.79,131.7,1.3422]
[1726070610489,5.04367336,131.79,131.7,1.3422]
[1726070610691,3.72807336,131.79,131.72,32.09]
[1726070610895,1.3462,131.8,131.72,32.09]
[1726070611288,3.7949,131.77,131.72,32.09]